Cogmind - Beta 14 @@@ ROGUE MODE // 2024.08.09 @ 05:22:10 Player: Wesmed Result: Destroyed by Y-64 Sentinel with KE Penetrator Performance ------------- Evolutions (4) 2000 Regions Visited (9) 1800 Robots Destroyed (39) 195 Value Destroyed (1500) 1500 Prototype IDs (13) 260 Alien Tech Used (0) 0 Bonus (2307) 2307 TOTAL SCORE: 8062 Bonus ------- High Alert Combat Kills 13 Follower Combat Kills 2242 Registered with UFD 300 Friendly Fire -248 Cogmind --------- Core Integrity 0/850 Matter 263/300 Energy 340/340 System Corruption 1% Temperature Cool (0) Movement Walking (120) Location -6/Archives Parts ------- > --- POWER (2) -------- Improved Deuterium Engine Light Angular Momentum Engine > --- PROPULSION (5) --- Carbon-fiber Leg Carbon-fiber Leg Carbon-fiber Leg Carbon-fiber Leg Myomer Leg > --- UTILITY (6) ------ Power Amplifier Advanced Heat Sink Improved Signal Interpreter Advanced Terrain Scanner Improved Light Armor Plating > --- WEAPON (2) ------- Flak Gun Great Maul > --- INVENTORY (5) ---- Carbon-fiber Leg Heavy Laser Gatling Laser Bore Cannon Remote Datajack Peak State ------------ > --- POWER ------------ Improved Deuterium Engine Light Angular Momentum Engine > --- PROPULSION ------- Centrium Heavy Treads Carbon-fiber Leg Carbon-fiber Leg Carbon-fiber Leg > --- UTILITY ---------- Power Amplifier Advanced Heat Sink Improved Sensor Array Improved Signal Interpreter Advanced Terrain Scanner Improved Light Armor Plating > --- WEAPON ----------- Heavy Laser Gatling Laser > --- INVENTORY -------- Carbon-fiber Leg Flak Gun Bore Cannon Remote Datajack Phasing Sabre [Rating: 70] Favorites ----------- Power Improved Ion Engine Engine Improved Ion Engine Power Core Light Fission Core Propulsion Aluminum Leg Treads Centrium Heavy Treads Leg Aluminum Leg Hover Unit Combat Airjet Utility Huge Storage Unit Device Improved Terrain Scanner Storage Huge Storage Unit Processor Improved Signal Interpreter Protection Improved Light Armor Plating Weapon Heavy Assault Rifle Energy Gun Heavy Laser Energy Cannon Ion Cannon Ballistic Gun Heavy Assault Rifle Ballistic Cannon Bore Cannon Launcher Rocket Launcher Impact Weapon Great Maul Slashing Weapon Katana Special Melee Weapon Datajack Build | -11 -10 -9 -9 -9 -9 -6 -6 -6 -6 ------- Run | Yrd Mat Mat Sto Rec Scr Fac Ext Cet Arc Slots Evolved 8 | . . 2 . . . 6 . . . Power 1 | . . . . . . 1 . . . Propulsion 3 | . . 1 . . . 2 . . . Utility 4 | . . 1 . . . 3 . . . Weapon . | . . . . . . . . . . Parts Attached 133 | 7 3 1 28 9 4 26 42 12 1 Power 13 | 1 . . 3 1 . 3 4 1 . Engine 11 | 1 . . 3 1 . 2 3 1 . Core 2 | . . . . . . 1 1 . . Reactor . | . . . . . . . . . . Propulsion 36 | 2 1 1 8 . 1 8 9 6 . Treads 1 | . . . . . . . . 1 . Leg 34 | 2 1 1 8 . 1 8 8 5 . Wheel . | . . . . . . . . . . Hover 1 | . . . . . . . 1 . . Flight . | . . . . . . . . . . Utility 38 | 2 1 . 6 3 3 5 17 1 . Device 19 | 1 . . 1 1 1 3 11 1 . Storage 3 | 1 1 . . 1 . . . . . Processor 2 | . . . . . . . 2 . . Hackware . | . . . . . . . . . . Protection 14 | . . . 5 1 2 2 4 . . Artifact . | . . . . . . . . . . Weapon 46 | 2 1 . 11 5 . 10 12 4 1 Energy Gun 8 | 1 . . . . . . 6 1 . Energy Cannon 1 | . . . . . . . 1 . . Ballistic Gun 21 | 1 1 . 6 3 . 6 3 1 . Ballistic Cannon 1 | . . . . . . . . 1 . Launcher 4 | . . . 2 . . 2 . . . Special Weapon . | . . . . . . . . . . Impact Weapon 4 | . . . . . . 2 . 1 1 Slashing Weapon 5 | . . . 3 . . . 2 . . Piercing Weapon . | . . . . . . . . . . Special Melee Weapon 2 | . . . . 2 . . . . . Unidentified Prototypes 1 | . . . . . . . . 1 . Parts Lost 38 | . 2 . 4 . . 19 12 1 . Power 8 | . 1 . 3 . . 2 2 . . Propulsion 8 | . . . . . . 8 . . . Utility 14 | . . . 1 . . 5 7 1 . Weapon 8 | . 1 . . . . 4 3 . . Highest Loss Streak 18 | . 1 . 2 . . 18 9 1 . To Critical Strikes . | . . . . . . . . . . Average Slot Usage (%) 94 | . 99 77 96 100 99 89 74 98 93 Engine 10 | . 13 . 9 11 11 7 8 13 13 Leg 30 | . 28 33 33 33 33 32 16 32 33 Device 12 | . 14 11 6 4 11 17 21 25 20 Storage 8 | . 14 11 11 11 11 6 . . . Protection 10 | . . . 14 17 10 6 4 6 6 Energy Gun 1 | . 10 . . . . . 5 8 . Ballistic Gun 16 | . 17 22 16 15 22 12 3 . 6 Peak Build Rating 70 | 9 10 10 15 18 25 62 61 70 59 Average Rating 26 | 5 9 10 13 15 20 54 41 60 58 On Entrance 20 | . 9 9 10 15 18 25 2 61 59 Naked Turns 54 | . . . . . . 6 48 . . Heaviest Build 121 | 13 28 24 41 107 101 121 43 38 38 Greatest Support 85 | 20 20 30 30 30 33 73 85 85 85 Greatest Overweight (x) 3 | 3 1 . 1 3 3 3 3 . . Average Overweight (x) 1 | . . . . 2 2 1 . . . Largest Inventory Capacity 25 | 8 15 15 15 25 25 25 5 5 5 Average Capacity 19 | 7 14 15 15 22 25 24 5 5 5 Most Carried 25 | 1 14 13 15 19 25 25 5 5 5 Average Carried 17 | . 7 13 14 16 24 23 4 4 5 Final Capacity 25 | 8 15 15 15 25 25 5 5 5 5 Final Carried 25 | 1 14 13 15 19 25 5 5 5 5 Class Distribution -------------------- 62% | Commander-Mutant 17% | Scavenger-Mutant 10% | Mutant 6% | Scavenger-Skirmisher Dominant Class ---------------- Mutant | -10/Materials Mutant | -9/Materials Scavenger-Mutant | -9/Storage Commander-Mutant | -9/Recycling Commander-Mutant | -9/Scraptown Commander-Mutant | -6/Factory Scavenger-Mutant | -6/Extension Scavenger-Skirmisher | -6/Cetus Scavenger-Mutant | -6/Archives Resources | -11 -10 -9 -9 -9 -9 -6 -6 -6 -6 ----------- Run | Yrd Mat Mat Sto Rec Scr Fac Ext Cet Arc Matter Collected 2069 | 214 94 . 573 141 20 304 603 120 . Remotely . | . . . . . . . . . . Salvage Created 1739 | 26 120 . 584 149 . 439 421 . . Parts 96 | 2 11 . 30 2 . 29 22 . . Haulers Intercepted . | . . . . . . . . . . Recyclers Shooed 6 | 1 . . 3 . . 1 1 . . Parts Field Recycled . | . . . . . . . . . . Retrieved Matter . | . . . . . . . . . . Parts Self-Destructed . | . . . . . . . . . . Prevented . | . . . . . . . . . . Kills | -11 -10 -9 -9 -9 -9 -6 -6 -6 -6 ------- Run | Yrd Mat Mat Sto Rec Scr Fac Ext Cet Arc Combat Hostiles Destroyed 33 | . 5 . 14 2 . 8 4 . . Melee 1 | . . . 1 . . . . . . Guns 23 | . 5 . 6 2 . 6 4 . . AOE 9 | . . . 7 . . 2 . . . Classes Destroyed 12 | 1 2 . 3 2 . 2 2 . . Tunneler 1 | 1 . . . . . . . . . Recycler 2 | . . . . 1 . . 1 . . Mechanic 1 | . . . . . . . 1 . . Operator 1 | . . . . . . 1 . . . Watcher 1 | . . . . . . . 1 . . Swarmer 3 | . 3 . . . . . . . . Grunt 12 | . 2 . 6 . . 3 1 . . Brawler 2 | . . . 1 1 . . . . . Duelist 1 | . . . 1 . . . . . . Protector 1 | . . . . 1 . . . . . Sentry 12 | . . . 6 . . 3 3 . . Programmer 2 | . . . . . . 2 . . . Best Kill Streak 4 | 1 3 . 4 2 . 3 1 . . Combat Bots Only 4 | . 3 . 4 2 . 3 1 . . Max Kills in Single Turn 3 | 1 1 . 3 2 . 2 1 . . Gunslinging 1 | . . . . . . 1 . . . Exploded 3 | . . . 3 . . 1 . . . Melee 1 | . . . 1 . . . . . . Uniques/NPCs Destroyed . | . . . . . . . . . . Combat | -11 -10 -9 -9 -9 -9 -6 -6 -6 -6 -------- Run | Yrd Mat Mat Sto Rec Scr Fac Ext Cet Arc Hostile Shots Fired 698 | . 52 . 72 4 . 399 143 12 16 Missed 243 | . 14 . 26 . . 138 53 7 5 Damage Taken 5816 | . 380 . 757 68 . 2889 1272 180 270 Core 1092 | . 101 . 128 11 . 646 110 50 46 Absorbed by Shields 61 | . . . . 6 . 10 45 . . Regen/Repaired (Parts) 47 | . . . . . . 47 . . . Core Remaining (%) 74 | 100 59 . . . 65 . . . . Volleys Fired 152 | 11 21 . 44 4 . 20 47 5 . Largest 2 | 1 2 . 2 2 . 2 2 2 . Hottest 149 | 20 60 . 56 46 . 58 149 149 . Shots Fired 246 | 11 31 . 64 7 . 37 86 10 . Gun 199 | 11 31 . 53 7 . 34 54 9 . Cannon 33 | . . . . . . . 32 1 . Launcher 14 | . . . 11 . . 3 . . . Special . | . . . . . . . . . . Kinetic 180 | 11 28 . 53 7 . 34 45 2 . Thermal 49 | . . . . . . . 41 8 . Explosive 13 | . . . 11 . . 2 . . . Electromagnetic 4 | . 3 . . . . 1 . . . Robot Hit Streak 15 | 2 8 . 10 8 . 14 15 13 . Robot Miss Streak 6 | 2 2 . 4 . . 2 6 4 . Penetration Max 1 | . . . . . . 1 1 . . Secondary Targets 4 | . 1 . . . . 2 1 . . Max Gunslinging Chain 1 | . 1 . . . . 1 1 . . Shots Hit Robots 228 | 6 21 . 37 47 . 30 75 7 5 Core Hits 105 | 1 7 . 29 4 . 23 33 7 1 Critical Kills . | . . . . . . . . . . Critical Parts Destroyed . | . . . . . . . . . . Critical Strikes . | . . . . . . . . . . Melee Attacks 94 | . . . 3 41 . 3 20 12 15 Impact 30 | . . . . . . 3 . 12 15 Slashing 23 | . . . 3 . . . 20 . . Piercing . | . . . . . . . . . . Sneak Attacks 41 | . . . . 40 . . 1 . . Combat Hostiles 30 | . . . . 30 . . . . . Follow-up Attacks . | . . . . . . . . . . Damage Inflicted 4925 | 72 232 . 1041 87 . 1243 1871 158 221 Guns 2787 | 72 232 . 487 87 . 675 1076 158 . Cannons 693 | . . . . . . . 693 . . Explosions 1075 | . . . 521 . . 554 . . . Melee 356 | . . . 33 . . . 102 . 221 Ramming 14 | . . . . . . 14 . . . Kinetic 2483 | 72 217 . 487 87 . 675 916 29 . Thermal 1059 | . . . . . . 77 853 129 . Explosive 897 | . . . 521 . . 376 . . . Electromagnetic 116 | . 15 . . . . 101 . . . Impact 221 | . . . . . . . . . 221 Slashing 135 | . . . 33 . . . 102 . . Piercing . | . . . . . . . . . . Highest Corruption 1 | . . . . . . 1 1 1 1 Average Corruption 1 | . . . . . . 1 1 1 1 Corruption Purged . | . . . . . . . . . . Corruption Blocked . | . . . . . . . . . . Effects 19 | . . . . . . 1 16 1 1 Message Errors 10 | . . . . . . . 9 1 . Matter Fused 3 | . . . . . . . 3 . . Heat Flow Errors 2 | . . . . . . . 2 . . Energy Discharges 1 | . . . . . . . . . 1 Data Loss (minor) 2 | . . . . . . 1 1 . . Data Loss (major) 1 | . . . . . . . 1 . . Overload Shots . | . . . . . . . . . . Overflow Damage 50 | . . . 6 . . . 10 . 34 Projectiles 10 | . . . . . . . 10 . . Explosions 6 | . . . 6 . . . . . . Melee 34 | . . . . . . . . . 34 Knockbacks . | . . . . . . . . . . Impact . | . . . . . . . . . . Kinetic . | . . . . . . . . . . Secondary . | . . . . . . . . . . Self-Inflicted Damage 94 | . . . 91 . . 3 . . . Shots 4 | . . . 3 . . 1 . . . Rammed 1 | . . . . . . 1 . . . Targets Rammed 3 | . . . . . . 3 . . . Kicked 2 | . . . . . . 2 . . . Crushed . | . . . . . . . . . . Highest Temperature 233 | . 18 . 31 4 . 75 233 27 . Average Temperature 29 | . 8 . 7 3 . 21 65 18 . Received Heat Transfer 1625 | . 147 . 237 13 . 930 253 . 45 Siege Activations . | . . . . . . . . . . Robots Corrupted . | . . . . . . . . . . Combat Hostiles . | . . . . . . . . . . Parts Fried . | . . . . . . . . . . Impact Corruptions 1 | . . . . . . . . . 1 Robots Melted . | . . . . . . . . . . Combat Hostiles . | . . . . . . . . . . Parts Melted 1 | . . . 1 . . . . . . Heat Transferred 1763 | . . . . . . 100 1389 274 . Parts Sabotaged . | . . . . . . . . . . Parts Stolen . | . . . . . . . . . . Parts Stripped . | . . . . . . . . . . Power Chain Reactions . | . . . . . . . . . . Alert | -11 -10 -9 -9 -9 -9 -6 -6 -6 -6 ------- Run | Yrd Mat Mat Sto Rec Scr Fac Ext Cet Arc Peak Influence 459 | 5 133 . 311 149 . 243 440 459 195 Initial 193 | . 3 . . 84 . . 84 193 159 Average 156 | . 33 . 147 39 . 59 319 343 166 Maximum Alert Level 2 | . . . 1 . . 1 2 2 . Low Security (%) 62 | 100 100 100 52 100 . 93 16 13 100 Level 1 29 | . . . 47 . . 6 59 40 . Level 2 8 | . . . . . . . 23 46 . Level 3 . | . . . . . . . . . . Level 4 . | . . . . . . . . . . Level 5 . | . . . . . . . . . . High Security . | . . . . . . . . . . Max Security . | . . . . . . . . . . Squads Dispatched 13 | . . . 1 . . 6 4 2 . Investigation 8 | . . . 1 . . 2 3 2 . Extermination 2 | . . . . . . 2 . . . Reinforcement 3 | . . . . . . 2 1 . . Assault . | . . . . . . . . . . Garrison . | . . . . . . . . . . Intercept . | . . . . . . . . . . Searches Triggered . | . . . . . . . . . . Construction Impeded . | . . . . . . . . . . Haulers Reinforced 1 | . . . . . . 1 . . . Active Scanning Responses . | . . . . . . . . . . Cargo Convoy Interrupts . | . . . . . . . . . . Stealth | -11 -10 -9 -9 -9 -9 -6 -6 -6 -6 --------- Run | Yrd Mat Mat Sto Rec Scr Fac Ext Cet Arc Distress Signals 11 | . 1 . 3 1 . 2 2 2 . Communications Jammed . | . . . . . . . . . . Distress Signals . | . . . . . . . . . . Times Spotted 110 | . 9 . 22 4 . 20 37 16 2 Peak Tracking Total 7 | . 4 . 4 2 . 7 5 5 2 Tactical Retreats 7 | . 1 . 1 . . 3 2 . . Traps | -11 -10 -9 -9 -9 -9 -6 -6 -6 -6 ------- Run | Yrd Mat Mat Sto Rec Scr Fac Ext Cet Arc Traps Triggered 5 | . . . 2 . . . 3 . . Indirectly . | . . . . . . . . . . Trap Hack Attempts . | . . . . . . . . . . Triggered . | . . . . . . . . . . Disarmed . | . . . . . . . . . . Reprogrammed . | . . . . . . . . . . Reused . | . . . . . . . . . . Traps Extracted . | . . . . . . . . . . Installed . | . . . . . . . . . . Triggered . | . . . . . . . . . . Machines | -11 -10 -9 -9 -9 -9 -6 -6 -6 -6 ---------- Run | Yrd Mat Mat Sto Rec Scr Fac Ext Cet Arc Machines Disabled 6 | . . . 3 . . 1 1 1 . Max in Single Turn 1 | . . . 1 . . 1 . . . Machines Repaired . | . . . . . . . . . . Machines Dismantled . | . . . . . . . . . . Machines Sabotaged . | . . . . . . . . . . Overloaded Fab Kills . | . . . . . . . . . . Hacking | -11 -10 -9 -9 -9 -9 -6 -6 -6 -6 --------- Run | Yrd Mat Mat Sto Rec Scr Fac Ext Cet Arc Machines Accessed 48 | . 1 . 12 9 9 4 10 3 . Terminals 29 | . 1 . 9 5 . 1 10 3 . Fabricators 1 | . . . . . . 1 . . . Repair Stations 1 | . . . 1 . . . . . . Recycling Units 4 | . . . 2 2 . . . . . Scanalyzers 1 | . . . . . . 1 . . . Garrison Access 1 | . . . . . . 1 . . . Total Hacks 160 | . 2 . 32 42 49 6 22 7 . Successful 98 | . 1 . 10 31 49 2 4 1 . Failed 62 | . 1 . 22 11 . 4 18 6 . Catastrophic 17 | . . . 5 3 . 1 5 3 . Database Lockouts . | . . . . . . . . . . Manual 44 | . 2 . 17 15 . 7 3 . . Terminals 71 | . 2 . 24 14 . 2 22 7 . Fabricators 1 | . . . . . . 1 . . . Repair Stations 3 | . . . 3 . . . . . . Recycling Units 8 | . . . 5 3 . . . . . Scanalyzers 1 | . . . . . . 1 . . . Garrison Access 2 | . . . . . . 2 . . . Terminal Hacks 84 | . . . 2 27 49 1 4 1 . Record 69 | . . . . 24 44 . . 1 . Robot Analysis 4 | . . . . . 4 . . . . Open Door 5 | . . . 1 . . . 4 . . Branch Access Points 3 | . . . 1 1 . 1 . . . Unreport Threat 1 | . . . . 1 . . . . . Derelict Proto ID Bank 1 | . . . . . 1 . . . . Release Object 1 | . . . . 1 . . . . . Fabricator Hacks . | . . . . . . . . . . Repair Station Hacks 1 | . . . 1 . . . . . . Refit 1 | . . . 1 . . . . . . Recycling Unit Hacks 3 | . . . 2 1 . . . . . Retrieve Components 3 | . . . 2 1 . . . . . Scanalyzer . | . . . . . . . . . . Garrison Access Hacks . | . . . . . . . . . . Unauthorized Hacks 10 | . 1 . 5 3 . 1 . . . Terminals 6 | . 1 . 3 2 . . . . . Botnet 6 | . 1 . 3 2 . . . . . Fabricators . | . . . . . . . . . . Repair Stations . | . . . . . . . . . . Recycling Units 3 | . . . 2 1 . . . . . Reject 3 | . . . 2 1 . . . . . Scanalyzers 1 | . . . . . . 1 . . . Extract 1 | . . . . . . 1 . . . Garrison Access . | . . . . . . . . . . Data Cores Recovered . | . . . . . . . . . . Used . | . . . . . . . . . . Hacking Detections 31 | . 1 . 9 5 . 3 10 3 . Full Trace Events 9 | . . . 2 1 . 1 3 2 . Feedback Events . | . . . . . . . . . . Feedback Blocked . | . . . . . . . . . . Robot Schematics Acquired . | . . . . . . . . . . Robots Built . | . . . . . . . . . . Authchips . | . . . . . . . . . . Time . | . . . . . . . . . . Total Robot Build Rating . | . . . . . . . . . . Part Schematics Acquired 1 | . . . . . . 1 . . . Parts Built . | . . . . . . . . . . Authchips . | . . . . . . . . . . Time . | . . . . . . . . . . Total Part Build Rating . | . . . . . . . . . . Parts Repaired . | . . . . . . . . . . Time . | . . . . . . . . . . Parts Recycled . | . . . . . . . . . . Recycled Matter . | . . . . . . . . . . Retrieved Matter . | . . . . . . . . . . Retrieved Components 19 | . . . 10 9 . . . . . Parts Scanalyzed . | . . . . . . . . . . Part Schematics Acquired . | . . . . . . . . . . Parts Damaged . | . . . . . . . . . . Bothacking | -11 -10 -9 -9 -9 -9 -6 -6 -6 -6 ------------ Run | Yrd Mat Mat Sto Rec Scr Fac Ext Cet Arc Used RIF Installer . | . . . . . . . . . . Robots Hacked 3 | . . . . 3 . . . . . Non-combat 3 | . . . . 3 . . . . . Combat . | . . . . . . . . . . Robot Hacks Applied 6 | . . . . 6 . . . . . parse_system 1 | . . . . 1 . . . . . no_distress 3 | . . . . 3 . . . . . find_recycling 2 | . . . . 2 . . . . . Relay Couplers Released . | . . . . . . . . . . Fabnet Peak Effective % . | . . . . . . . . . . Robots Rewired 26 | . . . . 15 . . 11 . . Allies Hacked . | . . . . . . . . . . Hacks Repelled . | . . . . . . . . . . Allies | -11 -10 -9 -9 -9 -9 -6 -6 -6 -6 -------- Run | Yrd Mat Mat Sto Rec Scr Fac Ext Cet Arc Total Allies 43 | . . . 10 15 . . 18 . . Largest Group 16 | . . . 10 16 16 16 12 12 . Highest-Rated Group 399 | . . . 88 234 234 234 399 399 . Highest-Rated Ally 159 | . . . 16 27 27 27 159 57 . Total Orders 6 | . . . . . . . 3 3 . ROAM 2 | . . . . . . . 1 1 . FOLLOW 1 | . . . . . . . . 1 . GUARD 2 | . . . . . . . 1 1 . RETURN 1 | . . . . . . . 1 . . Ally Attacks 373 | . . . 24 43 . 96 141 69 . Total Damage 6841 | . . . 173 399 . 1227 3528 1514 . Kills 63 | . . . 1 6 . 10 32 14 . Allies Corrupted . | . . . . . . . . . . Allies Melted . | . . . . . . . . . . Intel | -11 -10 -9 -9 -9 -9 -6 -6 -6 -6 ------- Run | Yrd Mat Mat Sto Rec Scr Fac Ext Cet Arc Robot Analysis Total 4 | . . . . . 4 . . . . Derelict Logs Recovered . | . . . . . . . . . . Drone Launches 3 | . . . . . . . 3 . . Drone Recoveries 2 | . . . . . . . 2 . . Exploration | -11 -10 -9 -9 -9 -9 -6 -6 -6 -6 ------------- Run | Yrd Mat Mat Sto Rec Scr Fac Ext Cet Arc Turns Passed 14463 | 116 413 10 1898 1672 6468 1198 2084 323 281 Spaces Moved 5506 | 69 188 8 844 540 1914 535 1190 173 45 Core 111 | 8 . . . . . 8 95 . . Treads . | . . . . . . . . . . Legs 5011 | 61 188 8 844 540 1914 527 711 173 45 Wheels . | . . . . . . . . . . Hover 384 | . . . . . . . 384 . . Flight . | . . . . . . . . . . Fastest Speed 50 | 50 120 120 120 190 260 50 50 120 120 Average Speed 230 | 121 184 120 180 283 326 194 137 120 120 Slowest Speed 330 | 200 190 120 190 330 330 330 290 120 120 Overloaded Moves . | . . . . . . . . . . Propulsion Burnouts . | . . . . . . . . . . Robots Hopped . | . . . . . . . . . . Cave-ins Triggered . | . . . . . . . . . . Exploration Rate (%) 50 | 4 19 1 82 98 94 12 82 65 43 Regions Visited 9 Branch Regions 6 Pre-discovered Areas 1 | . . . 1 . . . . . . Known Exits Taken 4 | . . . 1 . . 1 1 1 . Unknown Exits Taken 5 | 1 1 1 . 1 1 . . . . Scrap Searched 5 | . . . . . 5 . . . . Spaces Dug 19 | . . . 5 . . 3 1 . 10 Terrain Destroyed 161 | . . . 100 . . 50 1 . 10 Melee 14 | . . . . . . 3 1 . 10 Projectile 2 | . . . . . . 2 . . . AOE 145 | . . . 100 . . 45 . . . Terrain Rammed . | . . . . . . . . . . Walls Destroyed . | . . . . . . . . . . Machines Disabled . | . . . . . . . . . . Actions | -11 -10 -9 -9 -9 -9 -6 -6 -6 -6 --------- Run | Yrd Mat Mat Sto Rec Scr Fac Ext Cet Arc Total 6947 | 87 225 8 1158 652 2148 651 1521 256 241 Wait 774 | . . . 202 25 201 43 82 41 180 Move 5498 | 68 187 7 843 539 1913 535 1189 172 45 Hop . | . . . . . . . . . . Pick Up 64 | 1 13 . 9 2 15 9 12 3 . Fast Attach 44 | 7 . . 6 . 1 1 26 3 . Attach 21 | . 1 1 . . . 13 5 1 . Detach 3 | . . . 1 . 1 1 . . . Swap 68 | . 2 . 22 9 3 12 11 8 1 Drop 82 | . 1 . 23 2 14 12 19 11 . Fire 152 | 11 21 . 44 4 . 20 47 5 . Melee 94 | . . . 3 41 . 3 20 12 15 Ram . | . . . . . . . . . . Kick 2 | . . . . . . 2 . . . Crush . | . . . . . . . . . . Escape Stasis 22 | . . . 5 . . . 17 . . Rewire 123 | . . . . 30 . . 93 . . Trap . | . . . . . . . . . . Miscellaneous . | . . . . . . . . . . Route ------- -11/Scrapyard -10/Materials -9/Materials -9/Storage -9/Recycling (discovered 2 exits: [*Fac] / *Scr) -9/Scraptown (discovered 2 exits: *Fac x2) -6/Factory (discovered 4 exits: Low x2 / *Ext x2) -6/Extension (discovered 2 exits: *Fac / *Cet) -6/Cetus -6/Archives History --------- Turn | Location | Event 14 | -11/Scrapyard | Discovered new exit (range 15) 117 | -11/Scrapyard | Entered Materials 311 | -10/Materials | Build established: Mutant 524 | -10/Materials | Discovered new exit (range 4) 530 | -10/Materials | Entered another Materials area 530 | -9/Materials | Evolved 2 slots: Propulsion x1, Utility x1 531 | -9/Materials | Discovered new exit (range 7) 540 | -9/Materials | Entered Storage 927 | -9/Storage | Identified exit to Recycling 1176 | -9/Storage | Build established: Scavenger-Mutant 1289 | -9/Storage | Learned location of Armory (-4) 1955 | -9/Storage | Build established: Mutant 2051 | -9/Storage | Assisted by bots powering up and referring to "LRC-V3" 2163 | -9/Storage | Lost 4 allies 2416 | -9/Storage | Used back door to open Recycling access 2438 | -9/Storage | Entered Recycling 2438 | -9/Recycling | Accompanied by 5 allies 2439 | -9/Recycling | Met a Zionite searching for Scraptown 2838 | -9/Recycling | Build established: Commander-Mutant 3424 | -9/Recycling | Discovered new exit (range 15) 4006 | -9/Recycling | Scanned before Scraplab entrance 4062 | -9/Recycling | Entered Scraplab 4095 | -9/Recycling | Discovered new exit (range 3) 4110 | -9/Recycling | Entered Scraptown 4110 | -9/Scraptown | Accompanied by 16 allies 5105 | -9/Scraptown | Visited UFD Registry 5105 | -9/Scraptown | Registered with UFD as "Cogrunner" 5168 | -9/Scraptown | Visited Curators Association 5237 | -9/Scraptown | Visited Science Guys 5544 | -9/Scraptown | Visited Science Testing Area 5617 | -9/Scraptown | Visited Infowarlord's Domain 6142 | -9/Scraptown | Visited Scrap Suit Storage 7254 | -9/Scraptown | Visited Shadow of the Wyrm 7360 | -9/Scraptown | Visited Cyclists 7413 | -9/Scraptown | Entered Cyclist Reading Room 7495 | -9/Scraptown | Visited Assassins FH 7604 | -9/Scraptown | Visited Comm Corps 8515 | -9/Scraptown | Discovered new exit (range 5) 8865 | -9/Scraptown | Visited Awakened 8977 | -9/Scraptown | Visited CPS Storage 9142 | -9/Scraptown | Visited Botcube Research 9321 | -9/Scraptown | Found Botcube 9391 | -9/Scraptown | Visited Analyses Database 9470 | -9/Scraptown | Visited Scrapoid Research Area 9572 | -9/Scraptown | Visited DA-N13 Charitable Foundation 9622 | -9/Scraptown | Visited Cartography Club 9985 | -9/Scraptown | Discovered new exit (range 3) 10130 | -9/Scraptown | Found DCF Scrap (29 items) 10301 | -9/Scraptown | Found Scrap Suit 10404 | -9/Scraptown | Found Exp. Terrain Scanner 10578 | -9/Scraptown | Entered Factory 10578 | -6/Factory | Accompanied by 16 allies 10578 | -6/Factory | Evolved 6 slots: Power x1, Propulsion x2, Utility x3 11193 | -6/Factory | Identified exit to Lower Caves 11193 | -6/Factory | Identified exit to Extension 11241 | -6/Factory | Lost 4 allies 11478 | -6/Factory | Lost 4 allies 11603 | -6/Factory | Spotted B-75 Beast 11773 | -6/Factory | Core integrity fell below 50% 11776 | -6/Factory | Entered Extension 11801 | -6/Extension | Lost 18 parts (2p8n4u4w) 11816 | -6/Extension | Rescued a captive Derelict 11932 | -6/Extension | Rescued A7 12051 | -6/Extension | Disrupted transfer network 12069 | -6/Extension | Spotted B-75 Beast 12159 | -6/Extension | Allies destroyed B-75 Beast 12304 | -6/Extension | Build established: Scavenger-Mutant 12320 | -6/Extension | Botcube activated 12338 | -6/Extension | Botcube completed mutation into treaded form, armed with 1 gun, 1 cannon. 12463 | -6/Extension | Extracted ID and sensor layout for unrecognized location from A7's data core 12466 | -6/Extension | Spotted B-75 Beast 12494 | -6/Extension | Core integrity fell below 20% 12520 | -6/Extension | Allies destroyed B-75 Beast 12548 | -6/Extension | Lost 9 parts (1p6u2w) 12594 | -6/Extension | Rescued a captive Derelict 12594 | -6/Extension | Rescued a captive Derelict 12986 | -6/Extension | Rescued a captive Derelict 12994 | -6/Extension | Rescued a captive Derelict 13431 | -6/Extension | Build established: Scavenger-Skirmisher 13816 | -6/Extension | Discovered new exit (range 10) 13818 | -6/Extension | Discovered new exit (range 6) 13824 | -6/Extension | Identified exit to Cetus 13855 | -6/Extension | Identified exit to Factory 13860 | -6/Extension | Entered Cetus 13860 | -6/Cetus | Accompanied by 12 allies 13877 | -6/Cetus | Spotted Cetus Guard 13877 | -6/Cetus | Spotted Cetus Guard 13885 | -6/Cetus | Spotted Cetus Guard 13888 | -6/Cetus | Spotted Cetus Guard 13890 | -6/Cetus | Allies destroyed Cetus Guard 13897 | -6/Cetus | Allies destroyed Cetus Guard 13902 | -6/Cetus | Allies destroyed Cetus Guard 13913 | -6/Cetus | Allies destroyed Cetus Guard 13943 | -6/Cetus | Lost 6 allies 14097 | -6/Cetus | Discovered new exit (range 15) 14122 | -6/Cetus | Spotted Cetus Guard 14130 | -6/Cetus | Spotted Cetus Guard 14130 | -6/Cetus | Spotted Cetus Guard 14156 | -6/Cetus | Identified exit to Archives 14183 | -6/Cetus | Entered Archives 14190 | -6/Archives | Lost 4 allies 14441 | -6/Archives | Build established: Scavenger-Mutant 14464 | -6/Archives | Destroyed by Y-64 Sentinel with KE Penetrator Last Messages --------------- 14134_ HV Slug penetrates Wall. 14134_ Imp. Sensor Array destroyed. 14134_ Slug penetrates Wall. 14136_ Penetrated by Slug. 14137_ Slug penetrates Mutated Botcube. 14146_ Mutated Botcube suffers critical hit (Destroy). 14156_ EXIT=IDENTIFIED: ARCHIVES LOCATION=ARCHIVES GOAL=ESCAPE 14221_ The unstable cave ceiling collapses. 14382_ System corrupted: Energy discharge (-91). 14446_ Penetrated by Slug. 14455_ Slug penetrates Wall. 14460_ Destroyed Adv. Heat Sink. 14460_ Y-64 Sentinel system corrupted by crushing effect. 14461_ Slug penetrates Y-64 Sentinel. 14462_ Y-64 Sentinel IFF system glitched. 14464_ Penetrated by Slug. Map ----- +----------------------------------------------------+ | | | | | | | | | | | | | ????????????????????????????????????????? | | ????????????????????????????????????????? | | ????????????????????????????????????????? | | ????????????????????????????????????????? | | ????????????????????????????????????????? | | ???#??#?????????????????????????????????? | | #?#??#???#??????????????????????????????? | | ???????????????????"????????????????????? | | ????????????????????"???????????????????? | | ?#??????????????????????????????????????? | | ??#?????#?????????????? ??????#?????????? | | ##?????#???#??????????"?????????????????? | | ??????#?#?#????#?????#??#?? ????????????? | | ???#????##?#???????""""""???????#???????? | | #??#?#?????????#???""V"""#??????????????? | | ??#????#####??#???""" """# ?????????????? | | ??##??????#??#???#"" ""#o ##?????????? | | ??############### Y #?????????? | | ?## Y "?????????? | | ?## @ "?????????? | | #?# "????????? | | ??#####+######### o ????????? | | ??# #"""" o ?????????? | | ?## """"" o "?????????? | | ?## """"""" o ??????????? | | ?# """""""""#"V ??#???????? | | ?# """"""""""""" o ??????????? | | ?# """""""""#"""" ???????????? | | ?# """""""""#""""? ???????????? | | ?##"#########??????o o ????????????? | | ??###????????#???#? #"" "????????????? | | #???#????#?#####??? #"?" ??????????????? | | ??????????#?#???##? #??????????????????? | | ?????##??#??????#??? ???????????????????? | | ???###???????#?#??? ????????????????????? | | #?#??####?????????? ?? ?????????????????? | | ?????##?##????#?#??? #??????????????????? | | #????????##?????#?? ????????????????????? | | #???#???#?????#?????????????????????????? | | #????#?#?#???????? ? ???????????????????? | | ?#??????????????????????????????????????? | | ????#??#?#????#?????????????????????????? | | ????????????????#???????????????????????? | | #??#????#??????#????????????????????????? | +----------------------------------------------------+ Best States ------------- Heat Dissipation 70 Energy Generation 33 Energy Capacity 455 Matter Stores 300 Matter Capacity 300 Sight Range 16 Robot Scan Range 15 Terrain Scan Range 30 Terrain Scan Density 10 Power Amplification 20 Armor Coverage 450 Evasion (%) 55 Targeting Accuracy 8 Kinecelleration 30 Item Schematics ----------------- Med. Storage Unit | -6/Factory | Extracted Robot Schematics ------------------ None Fabricated ------------ Nothing Alien Tech Used ----------------- None Achievements -------------- Assassin More Dakka Please Novice Programmer Prison Break \\IAMDERELICT Challenges ------------ None Game ------ Seed PersonalFocalLoader Manual? 0 Play Time 02:13:46 Cumulative 33.3 hours Start 2024.08.08 @ 17:44:28 End 2024.08.09 @ 05:22:10 Sessions 4 Manual Loads 0 Difficulty Rogue Special Mode None Game No. 49 Rogue 41 Adventurer 8 Explorer 0 Win Type - Total 0 Types 0/0/0/0/0/0/0/0/0 Lore% 30 Gallery% 35 Achievement% 30 Wizard Run 0 Options --------- Layout 1 ASCII 0 Keyboard 0 Movement Arrows Keybinds 0 Fullscreen 1 Font 20/SmallcapsGlow Map View 54x42 Zoom Use 0% Tactical HUD 1 Map Filters NONE Filters NONE Steam 1 RUN: d75e6945-185e-4bc2-be01-43f02ab72ce6